fUSD/lending_fUSD_20250421
["ID","MTS","AMOUNT","RATE_DAILY","PERIOD"]
[358574525,1745273482236,-500.0,0.00044931,7]
[358574526,1745273482245,-500.0,0.00044931,7]
[358574527,1745273482255,-717.21,0.00044931,7]
[358574528,1745273482265,-500.0,0.00044931,7]
[358574529,1745273482274,-1570.7,0.00044931,7]
[358574530,1745273482283,-500.0,0.00044931,7]
[358574531,1745273482293,-151.0,0.00044931,14]
[358574532,1745273482303,-500.0,0.00044931,7]
[358574533,1745273482312,-500.0,0.00044931,7]
[358574534,1745273482321,-500.0,0.00044931,7]
[358574535,1745273482331,-1677.09,0.00044931,7]
[358574536,1745273482340,-1058.05,0.00044931,7]
[358574537,1745273482350,-500.0,0.00044931,7]
[358574538,1745273482359,-1248.18,0.00044931,7]
[358574539,1745273482368,-508.66,0.00044931,7]
[358574540,1745273482378,-500.0,0.00044931,7]
[358574541,1745273482392,-500.0,0.00044931,7]
[358574542,1745273482402,-616.38,0.00044931,7]
[358574543,1745273482411,-2278.19,0.00044931,7]
[358574544,1745273482420,-1336.46,0.00044931,7]
[358574545,1745273482430,-2099.91,0.00044931,7]
[358574546,1745273482439,-500.0,0.00044931,7]
[358574547,1745273482449,-500.0,0.00044931,7]
[358574548,1745273482458,-500.0,0.00044931,7]
[358574549,1745273482468,-500.0,0.00044931,7]
[358574550,1745273482477,-500.0,0.00044931,7]
[358574551,1745273482487,-1053.78,0.00044931,7]
[358574552,1745273482496,-2998.83,0.00044931,7]
[358574553,1745273482506,-831.47,0.00044931,7]
[358574554,1745273482515,-500.0,0.00044931,7]
[358574555,1745273482524,-1357.54,0.00044931,7]
[358574556,1745273482534,-500.0,0.00044931,7]
[358574557,1745273482543,-743.94,0.00044931,7]
[358574558,1745273482552,-1579.09,0.00044931,7]
[358574559,1745273482563,-500.0,0.00044931,7]
[358574560,1745273482572,-2781.12,0.00044931,7]
[358574561,1745273482581,-1075.24,0.00044931,7]
[358574562,1745273482591,-592.06,0.00044931,7]
[358574563,1745273482600,-500.0,0.00044931,7]
[358574564,1745273482609,-575.54,0.00044931,7]
[358574565,1745273482618,-1561.76,0.00044931,7]
[358574566,1745273482627,-1637.73,0.00044931,7]
[358574567,1745273482636,-1456.28,0.00044931,7]
[358574568,1745273482645,-500.0,0.00044931,7]
[358574569,1745273482654,-2605.24,0.00044931,7]
[358574570,1745273482663,-853.74,0.00044931,7]
[358574571,1745273482672,-2212.34,0.00044931,7]
[358574572,1745273482681,-542.7527869,0.00044931,7]
[358574573,1745273482691,-2220.57,0.00044931,7]
[358574574,1745273482700,-598.39,0.00044931,7]
[358574575,1745273482709,-901.27,0.00044931,7]
[358574576,1745273482719,-578.81,0.00044931,7]
[358574577,1745273482728,-500.0,0.00044931,7]
[358574578,1745273482738,-500.0,0.00044931,7]
[358574579,1745273482748,-500.0,0.00044931,7]
[358574580,1745273482758,-500.0,0.00044931,7]
[358574581,1745273482767,-1275.11,0.00044931,7]
[358574582,1745273482776,-500.0,0.00044931,7]
[358574583,1745273482785,-500.0,0.00044931,7]
[358574584,1745273482794,-500.0,0.00044931,7]
[358574585,1745273482804,-2355.08,0.00044931,7]
[358574586,1745273482814,-1605.45,0.00044931,7]
[358574587,1745273482822,-2547.52,0.00044931,7]
[358574588,1745273482831,-500.0,0.00044931,7]
[358574589,1745273482840,-500.0,0.00044931,7]
[358574590,1745273482850,-500.0,0.00044931,7]
[358574591,1745273482859,-500.0,0.00044931,7]
[358574592,1745273482868,-500.0,0.00044931,7]
[358574593,1745273482877,-1104.86,0.00044931,7]
[358574594,1745273482886,-500.0,0.00044931,7]
[358574595,1745273482896,-2642.88,0.00044931,7]
[358574596,1745273482905,-737.39,0.00044931,7]
[358574597,1745273482914,-500.0,0.00044931,7]
[358574598,1745273482923,-1339.26,0.00044931,7]
[358574599,1745273482932,-1748.44,0.00044931,2]
[358574600,1745273482941,-500.0,0.00044931,7]
[358574601,1745273482951,-662.24,0.00044931,7]
[358574602,1745273482960,-500.0,0.00044931,7]
[358574603,1745273482969,-500.0,0.00044931,7]
[358574604,1745273482978,-500.0,0.00044931,7]
[358574605,1745273482988,-1174.25,0.00044931,7]
[358574606,1745273482998,-798.15,0.00044931,7]
[358574607,1745273483007,-500.0,0.00044931,2]
[358574608,1745273483017,-500.0,0.00044931,7]
[358574609,1745273483026,-5495.09,0.00044931,7]
[358574610,1745273483035,-199.0117912,0.00044931,7]
[358574611,1745273483046,-500.0,0.00044931,7]
[358574612,1745273483055,-500.0,0.00044931,7]
[358574613,1745273483064,-707.27,0.00044931,7]
[358574614,1745273483073,-500.0,0.00044931,5]
[358574615,1745273483199,-500.0,0.00044931,7]
[358574616,1745273483220,-1480.63,0.00044931,7]
[358574617,1745273483230,-4209.854737,0.00044969,2]
[358574618,1745273483239,-151.0,0.00044969,14]
[358574619,1745273483249,-151.0,0.00044969,14]
[358574620,1745273483258,-151.0,0.00044969,14]
[358574621,1745273483267,-151.0,0.00044969,14]
[358574622,1745273483276,-151.0,0.00044969,14]
[358574623,1745273483285,-159.768622,0.00044969,14]
[358574624,1745273483295,-159.768622,0.00044969,14]
[358574625,1745273483304,-151.0,0.00044969,14]
[358574626,1745273483312,-151.0,0.00044969,14]
[358574627,1745273483322,-1469.516003,0.00044969,14]
[358574628,1745273483331,-1469.516003,0.00044969,14]
[358574629,1745273483340,-780.148884,0.00044969,14]
[358574630,1745273483349,-780.148884,0.00044969,14]
[358574631,1745273483359,-500.0,0.0004497,3]
[358574632,1745273483368,-150.5,0.0004497,120]
[358574633,1745273483377,-150.5,0.0004497,120]
[358574634,1745273483391,-150.5,0.0004498,120]
[358574635,1745273483400,-150.5,0.0004498,120]
[358574636,1745273483409,-150.5,0.0004499,120]
[358574637,1745273483418,-150.5,0.0004499,120]
[358574638,1745273483429,-100000.0,0.00045,2]
[358574639,1745273483438,-680369.02635864,0.00045,30]
[358574640,1745273483447,-311.49,0.00045,30]
[358574641,1745273483457,-1123.93,0.00045,7]
[358574642,1745273483467,-421.10858066,0.00045,5]
[358574643,1745273483476,-50000.0,0.00045,20]
[358574644,1745273483486,-150.0,0.00045,2]
[358574645,1745273483495,-568.27709041,0.00045,2]
[358574646,1745273483504,-150.0,0.00045,2]
[358574647,1745273483513,-150.0,0.00045,2]
[358574648,1745273483522,-150.0,0.00045,2]
[358574649,1745273483531,-1180.57830498,0.00045,2]
[358574650,1745273483540,-849.41253548,0.00045,2]
[358574651,1745273483550,-1402.69129486,0.00045,2]
[358574652,1745273483559,-405.0,0.00045,120]
[358574653,1745273483568,-150.0,0.00045,2]
[358574654,1745273483577,-2404.52265811,0.00045,2]
[358574655,1745273483587,-151.0,0.00045,14]
[358574656,1745273483596,-151.0,0.00045,14]
[358574657,1745273483606,-151.0,0.00045,14]
[358574658,1745273483615,-151.0,0.00045,14]
[358574659,1745273483625,-168.244593,0.00045,14]
[358574660,1745273483634,-168.244593,0.00045,14]
[358574661,1745273483643,-151.0,0.00045,14]
[358574662,1745273483653,-151.0,0.00045,14]
[358574663,1745273483662,-1577.55411,0.00045,14]
[358574664,1745273483671,-1577.55411,0.00045,14]
[358574665,1745273483680,-151.0,0.00045,14]
[358574666,1745273483690,-3651.83,0.00045,14]
[358574667,1745273483698,-151.0,0.00045,14]
[358574668,1745273483708,-151.0,0.00045,14]
[358574669,1745273483717,-151.0,0.00045,14]
[358574670,1745273483727,-151.0,0.00045,14]
[358574671,1745273483736,-151.0,0.00045,14]
[358574672,1745273483746,-20561.1612,0.00045,30]
[358574673,1745273483755,-151.0,0.00045,14]
[358574674,1745273483764,-300.36764,0.00045,14]
[358574675,1745273483774,-151.0,0.00045,14]
[358574676,1745273483783,-194.131251,0.00045,14]
[358574677,1745273483793,-151.0,0.00045,14]
[358574678,1745273483802,-183.897924,0.00045,14]
[358574679,1745273483812,-183.897924,0.00045,14]
[358574680,1745273483822,-151.0,0.00045,14]
[358574681,1745273483831,-151.0,0.00045,14]
[358574682,1745273483840,-159.768622,0.00045,14]
[358574683,1745273483849,-159.768622,0.00045,14]
[358574684,1745273483858,-151.0,0.00045,14]
[358574685,1745273483867,-193.910501,0.00045,14]
[358574686,1745273483876,-151.0,0.00045,14]
[358574687,1745273483885,-1469.516003,0.00045,14]
[358574688,1745273483895,-1469.516003,0.00045,14]
[358574689,1745273483903,-896.677004,0.00045,14]
[358574690,1745273483913,-896.677004,0.00045,14]
[358574691,1745273483922,-896.677004,0.00045,14]
[358574692,1745273483933,-896.677004,0.00045,14]
[358574693,1745273483943,-151.0,0.00045,14]
[358574694,1745273483954,-151.0,0.00045,14]
[358574695,1745273483966,-780.148884,0.00045,14]
[358574696,1745273483975,-274.417181,0.00045,14]
[358574697,1745273483984,-780.148884,0.00045,14]
[358574698,1745273483994,-274.417181,0.00045,14]
[358574699,1745273484003,-209.126942,0.00045,14]
[358574700,1745273484012,-209.126942,0.00045,14]
[358574701,1745273484021,-850.0,0.00045,2]
[358574702,1745273484030,-151.0,0.00045,14]
[358574703,1745273484039,-600.0,0.00045011,120]
[358574704,1745273484049,-167.6636,0.00045088,30]
[358574705,1745273484058,-1027.0,0.00045107,5]
[358574706,1745273484067,-9721.0144437,0.000452,30]
[358574707,1745273484077,-242.62,0.00045205,120]
[358574708,1745273484086,-600.0,0.00045285,120]
[358574709,1745273484095,-167.6636,0.00045288,30]
[358574710,1745273484105,-4198.1113165,0.00045448,2]
[358574711,1745273484115,-742.2271126,0.00045448,2]
[358574712,1745273484124,-72285.8095453,0.00045448,2]
[358574713,1745273484133,-5818.0694132,0.00045448,2]
[358574714,1745273484143,-15147.935952,0.00045448,2]
[358574715,1745273484153,-1656.741814,0.00045479,7]
[358574716,1745273484163,-500.406308,0.00045479,7]
[358574717,1745273484172,-151.0,0.00045479,14]
[358574718,1745273484182,-151.0,0.00045479,14]
[358574719,1745273484191,-151.0,0.00045479,14]
[358574720,1745273484200,-280.312852,0.00045479,14]
[358574721,1745273484209,-151.0,0.00045479,14]
[358574722,1745273484219,-151.0,0.00045479,14]
[358574723,1745273484228,-186.232249,0.00045479,14]
[358574724,1745273484238,-186.232249,0.00045479,14]
[358574725,1745273484247,-151.587974,0.00045479,14]
[358574726,1745273484256,-251.19098,0.00045479,14]
[358574727,1745273484266,-151.0,0.00045479,14]
[358574728,1745273484275,-287.93679,0.00045479,14]
[358574729,1745273484284,-287.93679,0.00045479,14]
[358574730,1745273484293,-500.0,0.00045479,7]
[358574731,1745273484302,-500.0,0.00045479,7]
[358574732,1745273484312,-500.0,0.00045479,7]
[358574733,1745273484322,-500.0,0.00045479,7]
[358574734,1745273484331,-500.0,0.00045479,7]
[358574735,1745273484340,-151.0,0.00045479,14]
[358574736,1745273484350,-418.51277921,0.00045479,7]
[358574737,1745273484359,-500.0,0.00045479,7]
[358574738,1745273484369,-500.0,0.00045479,7]
[358574739,1745273484378,-500.0,0.00045479,7]
[358574740,1745273484391,-500.0,0.00045479,7]
[358574741,1745273484401,-500.0,0.00045479,7]
[358574742,1745273484410,-500.0,0.00045479,7]
[358574743,1745273484420,-500.0,0.00045479,7]
[358574744,1745273484431,-500.0,0.00045479,7]
[358574745,1745273484440,-500.0,0.00045479,7]
[358574746,1745273484450,-864.57,0.00045479,7]
[358574747,1745273484461,-500.0,0.00045479,7]
[358574748,1745273484471,-500.0,0.00045479,7]
[358574749,1745273484481,-500.0,0.00045479,7]
[358574750,1745273484490,-500.0,0.00045479,7]
[358574751,1745273484500,-500.0,0.00045479,7]
[358574752,1745273484510,-500.0,0.00045479,7]
[358574753,1745273484519,-500.0,0.00045479,7]
[358574754,1745273484529,-500.0,0.00045479,7]
[358574755,1745273484538,-500.0,0.00045479,7]
[358574756,1745273484547,-500.0,0.00045479,7]
[358574757,1745273484557,-500.0,0.00045479,7]
[358574758,1745273484566,-500.0,0.00045479,7]
[358574759,1745273484576,-500.0,0.00045479,7]
[358574760,1745273484585,-500.0,0.00045479,7]
[358574761,1745273484594,-500.0,0.00045479,7]
[358574762,1745273484604,-674.89,0.00045479,7]
[358574763,1745273484612,-431.00778942,0.00045479,7]
[358574764,1745273484621,-500.0,0.00045479,7]
[358574765,1745273484631,-500.0,0.00045479,7]
[358574766,1745273484640,-500.0,0.00045479,7]
[358574767,1745273484649,-500.0,0.00045479,7]
[358574768,1745273484659,-1669.69,0.00045479,7]
[358574769,1745273484668,-500.0,0.00045479,7]
[358574770,1745273484677,-500.0,0.00045479,7]
[358574771,1745273484688,-500.0,0.00045479,7]
[358574772,1745273484697,-176.26700217,0.00045479,7]
[358574773,1745273484708,-500.0,0.00045479,7]
[358574774,1745273484717,-500.0,0.00045479,7]
[358574775,1745273484727,-500.0,0.00045479,7]
[358574776,1745273484736,-791.37,0.00045479,7]
[358574777,1745273484746,-500.0,0.00045479,7]
[358574778,1745273484756,-500.0,0.00045479,7]
[358574779,1745273484765,-500.0,0.00045479,7]
[358574780,1745273484779,-207.58726369,0.00045479,7]
[358574781,1745273484788,-500.0,0.00045479,7]
[358574782,1745273484798,-1023.25,0.00045479,7]
[358574783,1745273484808,-500.0,0.00045479,7]
[358574784,1745273484817,-500.0,0.00045479,7]
[358574785,1745273484827,-1458.87,0.00045479,7]
[358574786,1745273484838,-605.77678465,0.00045479,7]
[358574787,1745273484848,-500.0,0.00045479,7]
[358574788,1745273484857,-500.0,0.00045479,7]
[358574789,1745273484868,-500.0,0.00045479,7]
[358574790,1745273484878,-500.0,0.00045479,7]
[358574791,1745273484888,-500.0,0.00045479,7]
[358574792,1745273484897,-500.0,0.00045479,7]
[358574793,1745273484907,-500.0,0.00045479,7]
[358574794,1745273484917,-500.0,0.00045479,7]
[358574795,1745273484927,-500.0,0.00045479,7]
[358574796,1745273484936,-500.0,0.00045479,7]
[358574797,1745273484946,-527.53391386,0.00045479,120]
[358574798,1745273484957,-500.0,0.00045479,7]
[358574799,1745273484966,-151.0,0.00045479,14]
[358574800,1745273484976,-500.0,0.00045479,7]
[358574801,1745273484985,-500.0,0.00045479,7]
[358574802,1745273484995,-500.0,0.00045479,7]
[358574803,1745273485006,-163.125258,0.00045479,14]
[358574804,1745273485016,-529.82,0.00045479,7]
[358574805,1745273485026,-500.0,0.00045479,7]
[358574806,1745273485036,-500.0,0.00045479,7]
[358574807,1745273485046,-500.0,0.00045479,7]
[358574808,1745273485055,-500.0,0.00045479,7]
[358574809,1745273485066,-500.0,0.00045479,7]
[358574810,1745273485075,-500.0,0.00045479,7]
[358574811,1745273485086,-500.0,0.00045479,7]
[358574812,1745273485096,-969.44,0.00045479,7]
[358574813,1745273485105,-500.0,0.00045479,7]
[358574814,1745273485115,-500.0,0.00045479,7]
[358574815,1745273485124,-500.0,0.00045479,7]
[358574816,1745273485134,-500.0,0.00045479,7]
[358574817,1745273485144,-500.0,0.00045479,7]
[358574818,1745273485153,-500.0,0.00045479,7]
[358574819,1745273485162,-500.0,0.00045479,7]
[358574820,1745273485172,-629.509786,0.00045479,7]
[358574821,1745273485182,-690.93,0.00045479,7]
[358574822,1745273485192,-500.0,0.00045479,7]
[358574823,1745273485201,-279.5423376,0.00045479,7]
[358574824,1745273485211,-500.0,0.00045479,7]
[358574825,1745273485220,-500.0,0.00045479,7]
[358574826,1745273485230,-593.3,0.00045479,7]
[358574827,1745273485240,-500.0,0.00045479,7]
[358574828,1745273485250,-1494.4,0.00045479,7]
[358574829,1745273485260,-815.18,0.00045479,7]
[358574830,1745273485269,-500.0,0.00045479,7]
[358574831,1745273485278,-2474.26,0.00045479,7]
[358574832,1745273485288,-500.0,0.00045479,7]
[358574833,1745273485297,-847.59,0.00045479,7]
[358574834,1745273485307,-847.27,0.00045479,7]
[358574835,1745273485316,-500.0,0.00045479,7]
[358574836,1745273485325,-1385.14,0.00045479,7]
[358574837,1745273485334,-1515.36,0.00045479,7]
[358574838,1745273485343,-710.84,0.00045479,7]
[358574839,1745273485352,-500.0,0.00045479,7]
[358574840,1745273485361,-588.52898447,0.00045479,7]
[358574841,1745273485370,-585.36,0.00045479,7]
[358574842,1745273485379,-540.95,0.00045479,7]
[358574843,1745273485394,-500.0,0.00045479,7]
[358574844,1745273485403,-500.0,0.00045479,7]
[358574845,1745273485412,-2340.33,0.00045479,7]
[358574846,1745273485421,-500.0,0.00045479,7]
[358574847,1745273485432,-500.0,0.00045479,7]
[358574848,1745273485441,-500.0,0.00045479,7]
[358574849,1745273485450,-500.0,0.00045479,7]
[358574850,1745273485460,-623.44,0.00045479,7]
[358574851,1745273485469,-500.0,0.00045479,7]
[358574852,1745273485478,-500.0,0.00045479,7]
[358574853,1745273485487,-500.0,0.00045479,7]
[358574854,1745273485496,-500.0,0.00045479,7]
[358574855,1745273485505,-826.96,0.00045479,7]
[358574856,1745273485515,-500.0,0.00045479,7]
[358574857,1745273485523,-500.0,0.00045479,7]
[358574858,1745273485532,-500.0,0.00045479,7]
[358574859,1745273485542,-500.0,0.00045479,7]
[358574860,1745273485552,-500.0,0.00045479,7]
[358574861,1745273485562,-519.36,0.00045479,7]
[358574862,1745273485571,-1297.18,0.00045479,7]
[358574863,1745273485580,-500.0,0.00045479,7]
[358574864,1745273485590,-500.0,0.00045479,7]
[358574865,1745273485599,-514.13,0.00045479,7]
[358574866,1745273485608,-500.0,0.00045479,7]
[358574867,1745273485617,-500.0,0.00045479,7]
[358574868,1745273485626,-500.0,0.00045479,7]
[358574869,1745273485636,-980.71,0.00045479,7]
[358574870,1745273485645,-500.0,0.00045479,7]
[358574871,1745273485654,-500.0,0.00045479,7]
[358574872,1745273485663,-500.0,0.00045479,7]
[358574873,1745273485672,-500.0,0.00045479,7]
[358574874,1745273485681,-500.0,0.00045479,7]
[358574875,1745273485691,-706.63,0.00045479,7]
[358574876,1745273485700,-500.0,0.00045479,7]
[358574877,1745273485710,-500.0,0.00045479,7]
[358574878,1745273485720,-579.09,0.00045479,7]
[358574879,1745273485730,-858.69,0.00045479,7]
[358574880,1745273485740,-881.75,0.00045479,7]
[358574881,1745273485750,-500.0,0.00045479,7]
[358574882,1745273485759,-711.53,0.00045479,7]
[358574883,1745273485768,-884.65,0.00045479,7]
[358574884,1745273485778,-500.0,0.00045479,7]
[358574885,1745273485787,-904.67,0.00045479,7]
[358574886,1745273485796,-500.0,0.00045479,7]
[358574887,1745273485805,-500.0,0.00045479,7]
[358574888,1745273485815,-1183.26,0.00045479,7]
[358574889,1745273485824,-500.0,0.00045479,7]
[358574890,1745273485833,-546.21,0.00045479,7]
[358574891,1745273485842,-500.0,0.00045479,7]
[358574892,1745273485852,-1290.34,0.00045479,7]
[358574893,1745273485861,-376.48900168,0.00045479,7]
[358574894,1745273485870,-1419.16,0.00045479,7]
[358574895,1745273485879,-250.0,0.00045479,7]
[358574896,1745273485889,-500.0,0.00045479,7]
[358574897,1745273485898,-863.91,0.00045479,7]
[358574898,1745273485907,-1668.61,0.00045479,7]
[358574899,1745273485916,-500.0,0.00045479,7]
[358574900,1745273485925,-500.0,0.00045479,7]
[358574901,1745273485934,-1001.34,0.00045479,7]
[358574902,1745273485943,-500.0,0.00045479,7]
[358574903,1745273485952,-500.0,0.00045479,7]
[358574904,1745273485963,-500.0,0.00045479,7]
[358574905,1745273485972,-500.0,0.00045479,7]
[358574906,1745273485981,-500.0,0.00045479,7]
[358574907,1745273485990,-500.0,0.00045479,7]
[358574908,1745273485999,-2387.71,0.00045479,7]
[358574909,1745273486009,-500.0,0.00045479,7]
[358574910,1745273486018,-500.0,0.00045479,7]
[358574911,1745273486027,-500.0,0.00045479,7]
[358574912,1745273486036,-500.0,0.00045479,7]
[358574913,1745273486045,-1099.51,0.00045479,7]
[358574914,1745273486054,-500.0,0.00045479,7]
[358574915,1745273486063,-500.0,0.00045479,7]
[358574916,1745273486073,-657.93,0.00045479,7]
[358574917,1745273486082,-500.0,0.00045479,7]
[358574918,1745273486091,-500.0,0.00045479,7]
[358574919,1745273486100,-412.29154511,0.00045479,7]
[358574920,1745273486110,-786.17,0.00045479,7]
[358574921,1745273486119,-518.8523076,0.00045479,7]
[358574922,1745273486129,-500.0,0.00045479,7]
[358574923,1745273486138,-1738.61,0.00045479,7]
[358574924,1745273486148,-1177.97,0.00045479,7]
[358574925,1745273486159,-1533.1,0.00045479,7]
[358574926,1745273486169,-500.0,0.00045479,7]
[358574927,1745273486178,-500.0,0.00045479,7]
[358574928,1745273486188,-601.4,0.00045479,7]
[358574929,1745273486198,-500.0,0.00045479,7]
[358574930,1745273486207,-604.48,0.00045479,7]
[358574931,1745273486217,-500.0,0.00045479,7]
[358574932,1745273486226,-500.0,0.00045479,7]
[358574933,1745273486236,-500.0,0.00045479,7]
[358574934,1745273486245,-947.57,0.00045479,7]
[358574935,1745273486256,-500.0,0.00045479,7]
[358574936,1745273486265,-500.0,0.00045479,7]
[358574937,1745273486274,-500.0,0.00045479,7]
[358574938,1745273486284,-500.0,0.00045479,7]
[358574939,1745273486294,-1198.33,0.00045479,7]
[358574940,1745273486303,-779.43,0.00045479,7]
[358574941,1745273486313,-500.0,0.00045479,7]
[358574942,1745273486323,-563.02344465,0.00045479,7]
[358574943,1745273486332,-580.05,0.00045479,7]
[358574944,1745273486342,-927.9,0.00045479,7]
[358574945,1745273486351,-500.0,0.00045479,7]
[358574946,1745273486360,-550.70949846,0.00045479,7]
[358574947,1745273486370,-500.0,0.00045479,7]
[358574948,1745273486379,-500.0,0.00045479,7]
[358574949,1745273486392,-1505.54,0.00045479,7]
[358574950,1745273486401,-500.0,0.00045479,7]
[358574951,1745273486410,-500.0,0.00045479,7]
[358574952,1745273486420,-635.74,0.00045479,7]
[358574953,1745273486431,-500.0,0.00045479,7]
[358574954,1745273486440,-729.68,0.00045479,7]
[358574955,1745273486449,-500.0,0.00045479,7]
[358574956,1745273486461,-1567.41,0.00045479,7]
[358574957,1745273486470,-1953.23,0.00045479,7]
[358574958,1745273486480,-1438.84,0.00045479,7]
[358574959,1745273486489,-500.0,0.00045479,7]
[358574960,1745273486498,-2454.44,0.00045479,7]
[358574961,1745273486507,-500.0,0.00045479,7]
[358574962,1745273486517,-500.0,0.00045479,7]
[358574963,1745273486526,-511.81822624,0.00045479,7]
[358574964,1745273486535,-951.19,0.00045479,7]
[358574965,1745273486548,-500.0,0.00045479,7]
[358574966,1745273486557,-500.0,0.00045479,7]
[358574967,1745273486567,-500.0,0.00045479,7]
[358574968,1745273486577,-500.0,0.00045479,7]
[358574969,1745273486586,-500.0,0.00045479,7]
[358574970,1745273486596,-500.0,0.00045479,7]
[358574971,1745273486605,-222.33396981,0.00045479,7]
[358574972,1745273486614,-500.0,0.00045479,7]
[358574973,1745273486623,-500.0,0.00045479,7]
[358574974,1745273486632,-500.0,0.00045479,7]
[358574975,1745273486641,-500.0,0.00045479,7]
[358574976,1745273486651,-1772.65,0.00045479,7]
[358574977,1745273486660,-500.0,0.00045479,7]
[358574978,1745273486669,-500.0,0.00045479,7]
[358574979,1745273486869,-1520.58,0.00045479,7]
[358574980,1745273486879,-500.0,0.00045479,7]
[358574981,1745273486888,-500.0,0.00045479,7]
[358574982,1745273486898,-500.0,0.00045479,30]
[358574983,1745273486907,-1100.31,0.00045479,7]
[358574984,1745273486916,-500.0,0.00045479,7]
[358574985,1745273486926,-500.0,0.00045479,7]
[358574986,1745273486935,-500.0,0.00045479,7]
[358574987,1745273486944,-1134.03,0.00045479,7]
[358574988,1745273486954,-2906.42,0.00045479,7]
[358574989,1745273486963,-500.0,0.00045479,7]
[358574990,1745273486972,-765.04,0.00045479,7]
[358574991,1745273486982,-500.0,0.00045479,7]
[358574992,1745273486991,-658.02,0.00045479,7]
[358574993,1745273487001,-500.0,0.00045479,7]
[358574994,1745273487010,-500.0,0.00045479,7]
[358574995,1745273487019,-702.96,0.00045479,7]
[358574996,1745273487029,-687.2,0.00045479,7]
[358574997,1745273487039,-500.0,0.00045479,7]
[358574998,1745273487048,-500.0,0.00045479,7]
[358574999,1745273487059,-1543.41,0.00045479,7]
[358575000,1745273487069,-500.0,0.00045479,7]
[358575001,1745273487079,-500.0,0.00045479,7]
[358575002,1745273487088,-578.63016789,0.00045479,7]
[358575003,1745273487097,-1256.12,0.00045479,7]
[358575004,1745273487107,-500.0,0.00045479,7]
[358575005,1745273487116,-500.0,0.00045479,7]
[358575006,1745273487126,-621.72,0.00045479,7]
[358575007,1745273487135,-500.0,0.00045479,7]
[358575008,1745273487145,-500.0,0.00045479,7]
[358575009,1745273487154,-506.68,0.00045479,7]
[358575010,1745273487163,-500.0,0.00045479,7]
[358575011,1745273487173,-500.0,0.00045479,7]
[358575012,1745273487183,-1317.58,0.00045479,7]
[358575013,1745273487192,-500.0,0.00045479,7]
[358575014,1745273487202,-500.0,0.00045479,7]
[358575015,1745273487211,-500.0,0.00045479,7]
[358575016,1745273487221,-685.99,0.00045479,7]
[358575017,1745273487230,-821.12,0.00045479,7]
[358575018,1745273487240,-500.0,0.00045479,7]
[358575019,1745273487249,-797.08,0.00045479,7]
[358575020,1745273487260,-1948.41,0.00045479,7]
[358575021,1745273487270,-1659.14,0.00045479,7]
[358575022,1745273487279,-1048.75,0.00045479,7]
[358575023,1745273487289,-1221.11,0.00045479,7]
[358575024,1745273487298,-500.0,0.00045479,7]